bitfinex-derivatives/quotes_SOLF0:USTF0_20240902
["timestamp","ask_amount","ask_price","bid_price","bid_amount"]
[1725290268781,0.04986066,132.94,132.93,6.16872542]
[1725290269491,0.04986066,132.94,132.92,3.7617]
[1725290269694,0.04986066,132.94,132.93,2.40694985]
[1725290271091,0.04986066,132.94,132.92,3.7617]
[1725290271294,0.04986066,132.94,132.93,6.16842771]
[1725290272695,0.04986066,132.94,132.93,3.7615]
[1725290273890,0.04986066,132.94,132.93,6.16835126]
[1725290274493,0.04986066,132.94,132.93,3.7615]
[1725290274690,0.04986066,132.94,132.93,6.16835126]
[1725290275995,0.04986066,132.94,132.93,17.72835126]
[1725290276595,0.04986066,132.94,132.93,15.3215]
[1725290276794,0.04986066,132.94,132.93,3.7615]
[1725290277200,0.04986066,132.94,132.93,6.16812466]
[1725290277500,0.04986066,132.94,132.93,3.7615]
[1725290279402,0.04986066,132.94,132.93,6.16812205]
[1725290279803,0.04986066,132.94,132.93,17.72812205]
[1725290280805,0.04986066,132.94,132.93,6.16812205]
[1725290282504,0.04986066,132.94,132.93,3.7615]
[1725290291904,0.04986066,132.94,132.91,0.04916631]
[1725290292516,3.7617,132.93,132.91,0.04916631]
[1725290292705,0.04986066,132.94,132.91,0.04916631]
[1725290292904,0.04986066,132.94,132.91,11.60916631]
[1725290293708,0.04986066,132.94,132.91,15.37106631]
[1725290295118,0.04986066,132.94,132.92,3.7618]
[1725290295713,0.04986066,132.94,132.91,11.60916631]
[1725290295714,15.45181943,132.94,132.91,0.04916631]
[1725290295916,11.56,132.93,132.87,11.56]
[1725290296111,3.7626,132.9,132.82,1.3547]
[1725290296312,3.7626,132.9,132.85,11.56]
[1725290296713,3.7626,132.9,132.85,15.3236]
[1725290297008,0.05049523,132.89,132.86,0.05142898]
[1725290297523,3.763,132.88,132.86,0.05142898]
[1725290298120,0.05049523,132.89,132.86,0.05142898]
[1725290298121,3.7632,132.87,132.86,0.05142898]
[1725290301018,0.05049523,132.89,132.86,0.05142898]
[1725290301215,0.05049523,132.89,132.87,11.56]
[1725290301425,0.05049523,132.89,132.88,11.56]
[1725290301624,0.05049523,132.89,132.88,15.3229]
[1725290307134,0.05049523,132.89,132.88,11.56]
[1725290307429,0.05049523,132.89,132.87,11.56]
[1725290307828,0.05049523,132.89,132.88,3.7629]
[1725290308221,0.05049523,132.89,132.86,3.81482898]
[1725290310434,3.81319523,132.89,132.86,3.81482898]
[1725290310930,3.81319523,132.89,132.86,0.05142898]
[1725290311728,11.61049523,132.89,132.86,0.05142898]
[1725290311932,13.06479523,132.89,132.86,0.05142898]
[1725290312127,3.7632,132.87,132.86,0.05142898]
[1725290312336,1.4533,132.88,132.86,0.05142898]
[1725290313035,5.2164,132.88,132.86,0.05142898]
[1725290315534,7.51658553,132.87,132.86,0.05142898]
[1725290318455,0.05049523,132.89,132.86,0.05142898]
[1725290319547,0.05049523,132.89,132.87,3.7631]
[1725290319847,0.05049523,132.89,132.86,0.05142898]
[1725290320341,0.05049523,132.89,132.87,3.763]
[1725290320946,3.81319523,132.89,132.87,3.763]
[1725290321137,0.05049523,132.89,132.87,3.763]
[1725290322043,0.05049523,132.89,132.88,3.7629]
[1725290326451,0.05049523,132.89,132.86,0.05142898]
[1725290326850,3.763,132.88,132.86,0.05142898]
[1725290327051,0.05049523,132.89,132.86,0.05142898]
[1725290327651,3.81329523,132.89,132.86,0.05142898]
[1725290331159,3.763,132.88,132.86,0.05142898]
[1725290332154,11.61049523,132.89,132.86,0.05142898]
[1725290332360,3.7632,132.87,132.86,0.05142898]
[1725290334753,7.47105671,132.87,132.86,0.05142898]
[1725290335865,15.26785671,132.87,132.77,6.53185879]
[1725290336065,3.7644,132.83,132.79,11.56]
[1725290336664,3.7644,132.83,132.79,15.3253]
[1725290336861,0.05251991,132.82,132.8,0.05202265]
[1725290337567,3.7649,132.81,132.8,0.05202265]
[1725290337863,0.05251991,132.82,132.8,0.05202265]
[1725290338357,3.81731991,132.82,132.8,0.05202265]
[1725290338959,3.7649,132.81,132.8,0.05202265]
[1725290340360,3.81731991,132.82,132.8,0.05202265]
[1725290341070,3.7649,132.81,132.8,0.05202265]
[1725290341367,0.05251991,132.82,132.6,11.3125]
[1725290341671,12.882,132.8,132.73,13.96945671]
[1725290341967,12.882,132.8,132.73,11.56]
[1725290342466,0.05407422,132.78,132.73,11.56]
[1725290342860,0.05407422,132.78,132.75,11.56]
[1725290343058,3.81987422,132.78,132.75,11.56]
[1725290343279,0.05407422,132.78,132.69,4.0832]
[1725290343582,3.7664,132.76,132.73,11.56]
[1725290344974,3.8158426,132.76,132.73,11.56]
[1725290345577,0.0494426,132.76,132.7,2.41027713]
[1725290345769,0.0494426,132.76,132.7,13.97027713]
[1725290346273,3.7668,132.75,132.71,3.7677]
[1725290347382,3.8159426,132.76,132.72,3.7674]
[1725290347575,0.0494426,132.76,132.7,13.97027713]
[1725290347877,11.6094426,132.76,132.7,2.41027713]
[1725290348264,3.767,132.74,132.7,6.17827713]
[1725290348571,0.05558466,132.73,132.7,6.17827713]
[1725290352076,0.05558466,132.73,132.7,2.41027713]
[1725290352473,3.7675,132.72,132.7,2.41027713]
[1725290352866,0.05558466,132.73,132.7,2.41027713]
[1725290353274,3.82288466,132.73,132.7,2.41027713]
[1725290353673,3.82288466,132.73,132.69,3.7682]
[1725290353880,0.05558466,132.73,132.69,11.56]
[1725290354169,1.4312,132.8,132.72,11.56]
[1725290354373,1.4312,132.8,132.74,11.56]
[1725290354570,3.75875838,132.79,132.76,3.7663]
[1725290355278,3.80888442,132.79,132.76,3.82247374]
[1725290355677,7.57438442,132.79,132.76,0.05617374]
[1725290355878,0.05012604,132.79,132.76,0.05617374]
[1725290356170,0.05012604,132.79,132.77,3.7659]
[1725290358879,0.05012604,132.79,132.76,3.82247374]
[1725290359873,0.05012604,132.79,132.77,3.766]
[1725290360085,0.05012604,132.79,132.76,28.97617374]
[1725290360478,0.05012604,132.79,132.78,3.7658]
[1725290361080,7.59036581,132.83,132.79,3.7653]
[1725290361788,28.92,132.85,132.8,3.7649]
[1725290361988,3.78738865,132.84,132.81,0.053836]
[1725290362692,7.55158865,132.84,132.81,0.053836]
[1725290363288,3.78738865,132.84,132.81,3.818736]
[1725290364195,0.05056923,132.84,132.82,3.7646]
[1725290364383,3.75359742,132.84,132.81,0.053836]
[1725290364588,3.7649,132.81,132.74,28.92]
[1725290364786,28.92,132.83,132.76,3.7661]
[1725290364993,3.7652,132.81,132.75,3.69813349]
[1725290365387,28.92,132.83,132.76,3.7663]
[1725290365583,3.7653,132.8,132.76,3.7663]
[1725290365794,3.7653,132.8,132.78,0.04796305]
[1725290365981,0.05253425,132.81,132.78,0.04796305]
[1725290366188,3.81753425,132.81,132.78,0.04796305]
[1725290367294,3.7653,132.8,132.78,0.04796305]
[1725290367787,0.05253425,132.81,132.78,0.04796305]
[1725290368192,3.7655,132.8,132.78,0.04796305]
[1725290368789,3.7655,132.79,132.78,0.04796305]
[1725290369089,28.92,132.79,132.69,31.6717]
[1725290369283,3.7664,132.76,132.69,31.6717]
[1725290369496,3.7664,132.76,132.72,3.7673]
[1725290369890,0.05116558,132.75,132.72,3.7673]
[1725290370891,0.05116558,132.75,132.69,31.6717]
[1725290371099,0.05116558,132.75,132.71,28.92]
[1725290371692,0.05116558,132.75,132.74,3.7669]
[1725290372299,1.3335,132.84,132.79,3.7653]
[1725290372512,1.3335,132.84,132.73,28.92]
[1725290372513,3.7646,132.83,132.74,28.92]
[1725290373009,3.7646,132.83,132.78,3.7655]
[1725290373215,3.7647,132.82,132.78,3.7655]
[1725290373599,0.05573027,132.81,132.78,3.7655]
[1725290373811,0.05573027,132.81,132.79,0.05517844]
[1725290374205,0.05573027,132.81,132.79,3.82067844]
[1725290374612,0.05573027,132.81,132.79,0.05517844]
[1725290374613,3.82083027,132.81,132.79,0.05517844]
[1725290374806,0.05573027,132.81,132.79,0.05517844]
[1725290375008,28.92,132.8,132.79,0.05517844]
[1725290375311,32.6852,132.8,132.79,0.05517844]
[1725290376206,3.7658,132.78,132.71,28.92]
[1725290376415,28.92,132.8,132.76,3.7662]
[1725290377011,3.7656,132.79,132.76,3.7662]
[1725290377314,3.81761373,132.79,132.76,3.7662]
[1725290378311,0.05201373,132.79,132.73,28.92]
[1725290378507,0.04890422,132.77,132.73,28.92]
[1725290380414,0.04890422,132.77,132.76,3.7663]
[1725290391527,0.04890422,132.77,132.69,2.7517]
[1725290391528,0.04890422,132.77,132.75,3.7665]
[1725290391723,0.04750686,132.77,132.75,3.7665]
[1725290392223,0.04750686,132.77,132.74,3.7667]
[1725290393225,11.61750686,132.77,132.71,11.57]
[1725290393924,3.7665,132.76,132.73,3.767]
[1725290394323,3.82227249,132.76,132.73,3.767]
[1725290394731,0.05577249,132.76,132.73,3.767]
[1725290395540,0.05577249,132.76,132.74,3.7669]
[1725290395834,0.05577249,132.76,132.72,13.98042268]
[1725290396024,0.05577249,132.76,132.73,2.41019965]
[1725290396223,0.05577249,132.76,132.73,11.57]
[1725290396423,1.4131,132.83,132.75,11.57]
[1725290396620,11.57,132.82,132.76,3.77673998]
[1725290396827,5.05693047,132.85,132.79,11.57]
[1725290397030,16.62693047,132.85,132.79,11.57]
[1725290397427,0.05701874,132.83,132.81,3.7647]
[1725290397627,0.05701874,132.83,132.81,3.81254292]
[1725290398625,0.05701874,132.83,132.82,3.7646]
[1725290402936,67.27276085,132.92,132.82,31.30883095]
[1725290403135,3.7624,132.9,132.84,28.9]
[1725290403524,30.2579,132.91,132.85,2.40883095]
[1725290403833,32.71344216,132.89,132.87,0.05327137]
[1725290404038,3.81344216,132.89,132.87,0.05327137]
[1725290405834,0.05064216,132.89,132.87,0.05327137]
[1725290406239,0.05064216,132.89,132.87,3.81647137]
[1725290406628,0.05064216,132.89,132.88,3.7629]
[1725290413243,7.46750359,132.95,132.91,3.7619]
[1725290413445,2.7073,132.97,132.89,28.9]
[1725290413743,3.7608,132.96,132.92,3.7616]
[1725290413948,6.39879736,132.97,132.9,3.85327313]
[1725290414338,0.04853781,132.95,132.92,3.81824583]
[1725290415743,3.80953781,132.95,132.92,3.81824583]
[1725290415946,0.04853781,132.95,132.92,3.81824583]
[1725290416143,0.04853781,132.95,132.93,3.7615]
[1725290417846,28.94853781,132.95,132.92,0.05664583]
[1725290418853,3.7614,132.94,132.92,0.05664583]
[1725290421240,3.7614,132.94,132.92,3.81834583]
[1725290421446,0.04853781,132.95,132.92,0.05664583]
[1725290421837,0.04853781,132.95,132.93,3.7614]
[1725290423746,0.04853781,132.95,132.94,3.7612]
[1725290424250,0.04853781,132.95,132.92,0.05664583]
[1725290424852,0.04853781,132.95,132.93,3.7614]
[1725290429557,0.04853781,132.95,132.92,0.05664583]
[1725290430058,3.7615,132.94,132.92,0.05664583]
[1725290430551,0.04853781,132.95,132.92,3.81834583]
[1725290431153,0.04853781,132.95,132.92,0.05664583]
[1725290431750,3.7615,132.93,132.92,0.05664583]
[1725290431952,0.04853781,132.95,132.92,0.05664583]
[1725290432560,3.7615,132.93,132.92,0.05664583]
[1725290434456,3.7625,132.9,132.76,3.72627297]
[1725290434649,3.7625,132.9,132.84,28.9]
[1725290434956,3.7625,132.9,132.87,3.7631]
[1725290435553,3.69149736,132.97,132.87,3.7631]
[1725290435554,7.5165,133.05,132.89,28.9]
[1725290435758,1.4501,132.99,132.91,28.9]
[1725290436067,3.7605,132.97,132.94,3.7612]
[1725290436566,0.05351574,132.97,132.94,3.81348948]
[1725290438057,3.81401574,132.97,132.94,3.81348948]
[1725290439665,0.05351574,132.97,132.95,3.7609]
[1725290440355,0.05351574,132.97,132.94,0.05228948]
[1725290440660,3.81391574,132.97,132.94,3.81338948]
[1725290440857,0.05351574,132.97,132.94,0.05228948]
[1725290441063,0.05351574,132.97,132.96,3.7607]
[1725290442061,0.05351574,132.97,132.95,3.7608]
[1725290447176,0.05351574,132.97,132.94,0.05228948]
[1725290447381,0.05351574,132.97,132.95,28.9]
[1725290447877,0.05351574,132.97,132.96,3.7607]
[1725290450778,3.7595,133.01,132.98,3.76]
[1725290450972,3.7595,133.01,132.98,32.66]
[1725290451577,2.9096,133.04,133.01,3.7593]
[1725290451880,6.60488602,133.04,132.99,28.9]
[1725290452072,8.91868602,133.04,133.0,3.7594]
[1725290452774,8.96637664,133.04,133.01,0.05066422]
[1725290452979,8.96637664,133.04,133.01,3.80986422]
[1725290453978,5.27109062,133.04,133.02,3.7589]
[1725290454576,0.04769062,133.04,133.02,3.7589]
[1725290454971,0.04769062,133.04,133.03,3.7587]
[1725290455171,1.4125,133.12,133.03,28.9]
[1725290455374,1.4125,133.12,133.06,28.9]
[1725290455680,5.1688,133.12,133.06,28.9]
[1725290455876,3.74482974,133.11,133.06,28.9]
[1725290456273,3.7569,133.1,133.05,28.9]
[1725290456475,5.22688034,133.12,133.05,32.69896643]
[1725290456787,0.04894419,133.1,133.07,3.81115178]
[1725290457479,0.04894419,133.1,133.08,28.9]
[1725290457683,225.0,133.21,133.08,28.9]
[1725290457684,30.3125,133.19,133.08,28.9]
[1725290457879,3.7555,133.15,133.11,32.6563]
[1725290458080,3.76390205,133.16,133.11,28.9]
[1725290458378,3.7553,133.15,133.12,3.7559]
[1725290458578,3.71016959,133.15,133.11,28.9]
[1725290458772,0.05306171,133.14,133.12,0.05663594]
[1725290458983,0.05034098,133.14,133.12,0.05663594]
[1725290459585,0.05034098,133.14,133.12,3.81253594]
[1725290459777,0.05034098,133.14,133.12,28.95663594]
[1725290460175,0.05034098,133.14,133.13,3.75789002]
[1725290460378,323.44665719,133.25,133.13,28.9]
[1725290460576,4.347,133.24,133.17,28.9]
[1725290460889,3.7534,133.22,133.18,3.7544]
[1725290461392,4.347,133.24,133.18,3.7544]
[1725290461887,0.04990149,133.21,133.19,0.05328936]
[1725290462586,3.7539,133.2,133.19,0.05328936]
[1725290464185,3.7543,133.19,133.15,32.6552]
[1725290464485,7.45004421,133.19,133.15,32.6552]
[1725290464688,7.45004421,133.19,133.15,28.9]
[1725290465192,3.69574421,133.19,133.15,28.9]
[1725290465487,0.04790403,133.18,133.16,28.95698753]
[1725290465687,0.04850933,133.18,133.17,3.7547]
[1725290468390,0.04850933,133.18,133.16,3.80388373]
[1725290469184,0.04850933,133.18,133.16,0.04898373]
[1725290469586,0.04850933,133.18,133.16,3.80398373]
[1725290469787,0.04850933,133.18,133.16,0.04898373]
[1725290470787,3.80310933,133.18,133.16,0.04898373]
[1725290470987,0.04850933,133.18,133.16,0.04898373]
[1725290471886,3.80310933,133.18,133.16,0.04898373]
[1725290472087,0.04850933,133.18,133.16,0.04898373]
[1725290472388,3.7558,133.14,133.1,3.7566]
[1725290472594,0.04850933,133.18,133.1,32.6566]
[1725290472595,2.7552,133.18,133.1,32.6566]
[1725290472782,2.7552,133.18,133.1,28.9]
[1725290472982,2.7552,133.18,133.12,3.756]
[1725290473589,0.04976812,133.16,133.14,0.05005656]
[1725290473782,3.7555,133.15,133.14,0.05005656]
[1725290473989,0.04976812,133.16,133.14,0.05005656]
[1725290474291,0.04976812,133.16,133.15,32.6553]
[1725290475492,0.04976812,133.16,133.14,0.05005656]
[1725290476190,3.80476812,133.16,133.14,0.05005656]
[1725290476597,3.7553,133.15,133.14,0.05005656]
[1725290477993,3.7553,133.15,133.07,28.9]
[1725290477994,28.9,133.15,133.07,28.9]
[1725290478195,28.9,133.15,133.07,3.7574]
[1725290478387,3.7569,133.1,133.06,28.9]
[1725290478692,7.54182039,133.1,133.06,28.9]
[1725290478901,0.05747186,133.09,133.07,0.04942277]
[1725290479600,0.05747186,133.09,133.08,32.6573]
[1725290480099,0.05747186,133.09,133.08,28.9]
[1725290480287,0.05747186,133.09,133.07,0.04942277]
[1725290480891,3.81467186,133.09,133.07,0.04942277]
[1725290481188,0.05747186,133.09,133.07,0.04942277]
[1725290481388,0.05747186,133.09,133.07,28.94942277]
[1725290481593,0.05747186,133.09,133.08,3.7573]
[1725290481792,2.8513,133.17,133.07,28.9]
[1725290482102,3.7557,133.14,133.1,32.6566]
[1725290482494,3.756,133.13,133.1,28.9]
[1725290482689,3.80899667,133.13,133.1,28.95062665]
[1725290483092,0.05299667,133.13,133.1,28.95062665]
[1725290483697,0.05299667,133.13,133.1,32.70722665]
[1725290484001,0.05299667,133.13,133.1,28.95062665]
[1725290484496,0.05299667,133.13,133.11,3.7564]
[1725290484890,0.05299667,133.13,133.1,28.95062665]
[1725290485096,0.05299667,133.13,133.12,3.7561]
[1725290489110,3.7215469,133.19,133.12,61.50464444]
[1725290489407,4.2173,133.23,133.17,28.9]
[1725290489714,2.7677,133.23,133.17,28.9]
[1725290489999,0.0545465,133.21,133.19,0.05644345]
[1725290490699,0.0545465,133.21,133.2,3.7539]
[1725290490900,28.9,133.29,133.2,28.9]
[1725290491201,1.4354,133.29,133.22,28.9]
[1725290491409,3.7521,133.27,133.22,32.6533]
[1725290491704,34.17840623,133.29,133.2,28.9]
[1725290491915,0.04976545,133.26,133.23,0.05259472]
[1725290492107,3.8004224,133.26,133.23,0.05259472]
[1725290493112,3.7527,133.25,133.23,0.05259472]
[1725290493304,3.8004224,133.26,133.23,0.05259472]
[1725290493703,3.7527,133.25,133.23,0.05259472]
[1725290493900,3.8004224,133.26,133.23,0.05259472]
[1725290494409,3.7527,133.25,133.23,0.05259472]
[1725290494904,3.7528,133.24,133.23,0.05259472]
[1725290495104,3.8004224,133.26,133.23,0.05259472]
[1725290495105,0.04976545,133.26,133.23,0.05259472]
[1725290495911,1.46996545,133.26,133.23,0.05259472]
[1725290496109,0.04976545,133.26,133.23,0.05259472]
[1725290497911,3.7528,133.24,133.23,0.05259472]
[1725290500715,3.754,133.2,133.17,28.9]
[1725290501010,28.9,133.25,133.17,28.9]
[1725290501214,1.3557,133.24,133.17,28.9]
[1725290501407,3.7539,133.2,133.17,32.6546]
[1725290501613,3.7539,133.2,133.17,28.9]
[1725290501908,0.0484327,133.2,133.17,28.95550988]
[1725290502614,3.8023327,133.2,133.17,32.71010988]
[1725290502811,0.0484327,133.2,133.17,28.95550988]
[1725290503009,0.0484327,133.2,133.19,32.6542]
[1725290503717,3.7528,133.24,133.21,3.7534]
[1725290504218,3.753,133.24,133.2,3.7538]
[1725290504420,3.68862884,133.27,133.2,3.7538]
[1725290504617,3.753,133.23,133.22,0.05660044]
[1725290504823,7.57432132,133.23,133.22,0.05660044]
[1725290505523,3.7541,133.2,133.15,28.9]
[1725290505716,5.21022132,133.23,133.17,3.7546]
[1725290505910,1.3889,133.23,133.17,3.7546]
[1725290506114,3.754,133.2,133.17,3.7546]
[1725290506318,1.3889,133.23,133.18,3.7544]
[1725290506627,0.051159,133.22,133.19,0.0491594]
[1725290506826,3.7539,133.2,133.19,0.0491594]
[1725290511225,28.9,133.22,133.12,28.9]
[1725290512021,28.9,133.2,133.12,28.9]
[1725290512217,0.05763993,133.17,133.15,0.05257261]
[1725290512522,0.05763993,133.17,133.09,30.3461]
[1725290512523,3.7563,133.12,133.09,28.9]
[1725290513322,3.7565,133.11,133.09,28.9]
[1725290513518,3.80466753,133.11,133.09,28.95198405]
[1725290514437,0.04816753,133.11,133.09,28.95198405]
[1725290520129,28.9,133.2,133.1,28.9]
[1725290520626,3.7552,133.16,133.12,28.9]
[1725290521431,0.04969716,133.15,133.13,0.05608282]
[1725290521632,0.04969716,133.15,133.13,3.81188282]
[1725290523028,0.04969716,133.15,133.14,3.7556]
[1725290523928,0.04969716,133.15,133.14,32.6556]
[1725290524929,0.04969716,133.15,133.14,3.7556]
[1725290525734,1.4256,133.22,133.15,3.7553]
[1725290526435,3.7543,133.19,133.15,3.7553]
[1725290526633,3.7543,133.19,133.16,0.04759558]
[1725290526846,0.05264851,133.18,133.16,0.04759558]
[1725290528535,3.80714851,133.18,133.16,0.04759558]
[1725290530430,3.7547,133.17,133.16,0.04759558]
[1725290530633,28.9,133.17,133.01,150.18]
[1725290530938,3.7563,133.12,133.07,32.6574]
[1725290531140,3.81138875,133.12,133.08,2.4035533]
[1725290531443,28.9,133.15,133.07,28.9]
[1725290531637,3.7565,133.11,133.1,0.05514033]
[1725290532034,0.05606721,133.12,133.1,0.05514033]
[1725290533039,0.05606721,133.12,133.11,3.7564]
[1725290533237,1.335,133.22,133.1,28.95514033]
[1725290533435,1.335,133.22,133.13,28.9]
[1725290533633,3.7541,133.2,133.15,28.9]
[1725290533838,3.7541,133.2,133.16,3.755]
[1725290534538,0.05201286,133.19,133.17,0.05463627]
[1725290537957,0.05201286,133.19,133.17,3.80923627]
[1725290538363,0.05201286,133.19,133.17,0.05463627]
[1725290541370,28.9,133.18,133.0,34.36048074]
[1725290541669,28.9,133.14,133.04,28.9]
[1725290541966,3.7564,133.11,133.05,2.40341903]
[1725290542268,0.04836669,133.09,133.05,2.40341903]
[1725290542564,0.04836669,133.09,133.07,3.81159374]
[1725290544265,0.04836669,133.09,133.07,0.05409374]
[1725290546558,3.80566669,133.09,133.07,0.05409374]
[1725290547373,0.04836669,133.09,133.07,0.05409374]
[1725290547962,0.04836669,133.09,133.07,3.81149374]
[1725290550174,3.80546669,133.09,133.07,0.05409374]
[1725290550767,0.04836669,133.09,133.07,0.05409374]
[1725290550982,37.4268,133.18,133.08,36.04]
[1725290551269,3.71224643,133.17,133.09,2.40360432]
[1725290551474,3.7549,133.17,133.1,36.04]
[1725290551670,3.7549,133.17,133.12,3.756]
[1725290551868,3.7549,133.17,133.1,36.04]
[1725290552178,0.0523762,133.15,133.12,0.04997949]
[1725290552675,0.0523762,133.15,133.13,3.7558]
[1725290553079,0.0523762,133.15,133.14,3.7556]
[1725290553672,36.04,133.22,133.14,36.04]
[1725290553869,1.3872,133.23,133.14,36.04]
[1725290554068,1.3872,133.23,133.17,3.7545]
[1725290554069,3.7535,133.22,133.17,3.7545]
[1725290554782,0.05721947,133.21,133.18,0.05365065]
[1725290555777,0.05721947,133.21,133.19,3.7542]
[1725290555987,0.05721947,133.21,133.18,0.05365065]
[1725290556779,0.05721947,133.21,133.2,3.7539]
[1725290559882,3.7523,133.26,133.22,3.7533]
[1725290560276,7.4698313,133.26,133.22,3.7533]
[1725290560775,3.7518,133.28,133.22,3.6845987]
[1725290560975,3.7518,133.28,133.18,36.04]
[1725290560976,0.04864682,133.26,133.24,0.05251898]
[1725290563186,0.04864682,133.26,133.24,3.80521898]
[1725290564583,0.04864682,133.26,133.24,0.05251898]
[1725290565092,3.80094682,133.26,133.24,0.05251898]
[1725290566992,3.7525,133.25,133.24,0.05251898]
[1725290567882,5.22494682,133.26,133.24,0.05251898]
[1725290568693,1.47264682,133.26,133.24,3.80511898]
[1725290570381,0.04864682,133.26,133.25,3.7525]
[1725290576290,0.04864682,133.26,133.24,3.80521898]
[1725290576495,0.04864682,133.26,133.24,0.05251898]
[1725290576888,0.04864682,133.26,133.24,3.80521898]
[1725290578093,0.04864682,133.26,133.24,0.05251898]
[1725290581094,0.04864682,133.26,133.24,3.80511898]
[1725290581395,3.80094682,133.26,133.24,0.05251898]
[1725290581692,0.04864682,133.26,133.24,0.05251898]
[1725290581885,3.7525,133.25,133.24,0.05251898]
[1725290586711,1.43854682,133.26,133.18,28.81]
[1725290586994,1.3899,133.26,133.2,28.81]
[1725290587204,3.7522,133.26,133.2,28.81]
[1725290587596,1.3655,133.3,133.24,28.81]
[1725290587806,0.05594336,133.28,133.26,0.04903948]
[1725290588801,0.05594336,133.28,133.26,28.85903948]
[1725290589001,0.05594336,133.28,133.27,28.81]
[1725290589205,1.4111,133.35,133.27,28.81]
[1725290589405,5.1609,133.35,133.27,28.81]
[1725290589707,1.4111,133.35,133.27,34.00389942]
[1725290590301,0.04961619,133.32,133.3,0.05376919]
[1725290591008,3.80021619,133.32,133.3,0.05376919]
[1725290592513,3.7508,133.31,133.3,0.05376919]
[1725290593310,3.80021619,133.32,133.3,0.05376919]
[1725290594415,0.04961619,133.32,133.3,0.05376919]
[1725290597123,0.04961619,133.32,133.3,3.80476919]
[1725290597716,0.04961619,133.32,133.3,0.05376919]
[1725290598831,3.7508,133.31,133.3,0.05376919]
[1725290600919,3.80021619,133.32,133.3,0.05376919]
[1725290601125,0.04961619,133.32,133.3,0.05376919]
[1725290602723,3.80031619,133.32,133.3,0.05376919]
[1725290605932,0.04961619,133.32,133.3,0.05376919]
[1725290606724,0.04961619,133.32,133.3,3.80486919]
[1725290606921,0.04961619,133.32,133.3,0.05376919]
[1725290607432,3.7508,133.31,133.3,0.05376919]
[1725290608020,3.7519,133.28,133.24,3.7527]
[1725290609022,0.05753822,133.27,133.25,0.05502633]
[1725290609838,3.7522,133.26,133.25,0.05502633]
[1725290610932,28.86753822,133.27,133.19,3.7541]
[1725290611236,28.81,133.25,133.19,3.7541]
[1725290611441,3.7533,133.23,133.19,3.7541]
[1725290611736,28.81,133.25,133.14,3.74099369]
[1725290611737,28.81,133.25,133.15,28.81]
[1725290611936,0.05753822,133.27,133.14,3.74099369]
[1725290612232,3.7535,133.22,133.18,3.7543]
[1725290612640,3.7535,133.22,133.19,0.057758]
[1725290612837,0.05540178,133.21,133.19,0.057758]
[1725290613136,0.05540178,133.21,133.19,3.811858]
[1725290615032,0.05540178,133.21,133.19,0.057758]
[1725290616137,3.80900178,133.21,133.19,0.057758]
[1725290618536,3.7539,133.2,133.19,0.057758]
[1725290622335,32.5639,133.2,133.19,0.057758]
[1725290622645,3.7551,133.16,133.13,2.40263441]
[1725290622946,3.7551,133.16,133.13,3.7557]
[1725290623537,3.80724708,133.16,133.13,3.80545627]
[1725290627541,0.05214708,133.16,133.13,0.04975627]
[1725290628545,3.7556,133.14,133.13,0.04975627]
[1725290629852,28.81,133.14,133.06,2.813]
[1725290630051,28.81,133.14,133.06,6.4995425]
[1725290630447,3.7566,133.11,133.08,3.7571]
[1725290630642,28.81,133.14,133.06,2.813]
[1725290630843,0.05779445,133.11,133.09,0.04920288]
[1725290631043,3.81439445,133.11,133.09,0.04920288]
[1725290631347,0.05779445,133.11,133.09,0.04920288]
[1725290632049,3.7567,133.1,133.09,0.04920288]
[1725290634052,32.5667,133.1,133.09,0.04920288]
[1725290634851,28.81,133.1,133.01,30.1839]
[1725290635250,3.7577,133.07,133.04,3.7583]
[1725290635552,28.81,133.09,132.99,31.6266]
[1725290635746,3.81038901,133.05,133.03,0.05185271]
[1725290636555,0.05218901,133.05,133.03,0.05185271]
[1725290639554,3.81048901,133.05,133.03,0.05185271]
[1725290640346,3.7584,133.04,133.03,0.05185271]
[1725290640547,32.5684,133.04,133.03,0.05185271]
[1725290640757,28.81,133.04,132.98,89.46530631]
[1725290640958,1.3456,133.03,132.98,89.46530631]
[1725290641249,3.7594,133.01,132.98,89.46530631]
[1725290641753,3.81541173,133.01,132.98,89.51655524]